bitfinex/quotes_BTCUSD_20250830
["timestamp","ask_amount","ask_price","bid_price","bid_amount"]
[1756562908855,1.63597896,108720.0,108710.0,0.22528]
[1756562909201,1.63597953,108720.0,108710.0,0.22528]
[1756562912290,1.63597953,108720.0,108710.0,0.15452]
[1756562913496,1.63597953,108720.0,108710.0,0.15766]
[1756562915192,1.63597953,108720.0,108710.0,0.15452]
[1756562915599,0.18397571,108710.0,108700.0,0.27224]
[1756562915846,0.89331267,108710.0,108700.0,0.42886]
[1756562916419,0.89978665,108710.0,108700.0,0.42886]
[1756562917608,0.89331267,108710.0,108700.0,0.42886]
[1756562918456,0.89978754,108710.0,108700.0,0.42886]
[1756562919453,0.87605013,108710.0,108700.0,0.42886]
[1756562919753,0.89979371,108710.0,108700.0,0.42886]
[1756562923776,0.89979371,108710.0,108700.0,0.27434]
[1756562923983,0.90048371,108710.0,108700.0,0.42886]
[1756562924185,0.90048371,108710.0,108700.0,0.27224]
[1756562924402,0.92038024,108710.0,108700.0,0.42676]
[1756562924600,0.92038024,108710.0,108700.0,0.42886]
[1756562925213,0.94804424,108710.0,108700.0,0.42886]
[1756562927748,0.94804424,108710.0,108700.0,0.2691]
[1756562927949,0.94804424,108710.0,108700.0,0.42362]
[1756562929216,0.94904424,108710.0,108700.0,0.42362]
[1756562929419,0.18399264,108700.0,108690.0,0.343]
[1756562929661,0.91970717,108700.0,108690.0,0.49949]
[1756562930269,0.92748515,108700.0,108690.0,0.49949]
[1756562930671,0.94738004,108700.0,108690.0,0.49949]
[1756562931263,0.92748515,108700.0,108690.0,0.49949]
[1756562933108,1.27421236,108700.0,108690.0,0.49949]
[1756562933918,1.27419875,108700.0,108690.0,0.49949]
[1756562934967,1.27350875,108700.0,108690.0,0.49949]
[1756562935596,0.92747154,108700.0,108690.0,0.49949]
[1756562940878,0.92745469,108700.0,108690.0,0.49949]
[1756562941713,0.92745454,108700.0,108690.0,0.49949]
[1756562946738,0.23538012,108700.0,108690.0,0.49949]
[1756562946933,0.92745454,108700.0,108690.0,0.49949]
[1756562947549,0.92098501,108700.0,108690.0,0.49949]
[1756562948245,0.92745497,108700.0,108690.0,0.49949]
[1756562950309,0.92745543,108700.0,108690.0,0.49949]
[1756562950528,0.92745981,108700.0,108690.0,0.49949]
[1756562951109,0.89979381,108700.0,108690.0,0.49949]
[1756562956822,0.74346717,108700.0,108690.0,0.49949]
[1756562957475,0.92747944,108700.0,108690.0,0.49949]
[1756562960207,0.92749053,108700.0,108690.0,0.49949]
[1756562961074,0.92749049,108700.0,108690.0,0.49949]
[1756562961275,0.9274904,108700.0,108690.0,0.49949]
[1756562962796,0.92749037,108700.0,108690.0,0.49949]
[1756562966141,0.92749037,108700.0,108690.0,0.34497]
[1756562966315,0.92818037,108700.0,108690.0,0.34497]
[1756562966659,1.29412365,108700.0,108690.0,0.49748]
[1756562968255,1.29412481,108700.0,108690.0,0.49748]
[1756562969150,1.29412385,108700.0,108690.0,0.49748]
[1756562969789,1.29343385,108700.0,108690.0,0.49958]
[1756562969960,0.94739664,108700.0,108690.0,0.49958]
[1756562971907,0.94739518,108700.0,108690.0,0.49958]
[1756562973864,0.25532076,108700.0,108690.0,0.49958]
[1756562974069,0.94739518,108700.0,108690.0,0.49958]
[1756562977613,0.94739342,108700.0,108690.0,0.49958]
[1756562978023,0.92749007,108700.0,108690.0,0.49958]
[1756562979201,0.92749007,108700.0,108690.0,0.42882]
[1756562982382,0.91021224,108700.0,108690.0,0.42882]
[1756562982650,0.92748706,108700.0,108690.0,0.42882]
[1756562983318,0.92748664,108700.0,108690.0,0.42882]
[1756562986077,0.91021142,108700.0,108690.0,0.42882]
[1756562986258,0.92748611,108700.0,108690.0,0.42882]
[1756562989508,0.92817611,108700.0,108690.0,0.42882]
[1756562989739,0.92817611,108700.0,108690.0,0.2691]
[1756562989951,1.38240961,108700.0,108690.0,0.2691]
[1756562990209,1.72240961,108700.0,108690.0,0.42354]
[1756562990422,1.72283961,108700.0,108690.0,0.42354]
[1756562991072,1.72283961,108700.0,108690.0,0.2691]
[1756562991295,1.72283961,108700.0,108690.0,0.42354]
[1756562991510,1.72240961,108700.0,108690.0,0.42354]
[1756562992543,1.63611329,108700.0,108690.0,0.42354]
[1756562992924,1.63654329,108700.0,108690.0,0.42354]
[1756562993128,1.63653804,108700.0,108690.0,0.42354]
[1756562993335,1.63610804,108700.0,108690.0,0.15444]
[1756562993739,1.63653804,108700.0,108690.0,0.15444]
[1756562993954,1.63653804,108700.0,108680.0,0.33986]
[1756562993955,0.18400956,108690.0,108680.0,0.33986]
[1756562994163,0.90052178,108690.0,108680.0,0.4943]
[1756562994627,0.92819078,108690.0,108680.0,0.4943]
[1756562995270,0.92819078,108690.0,108680.0,0.4943477]
[1756562995606,0.92819078,108690.0,108680.0,0.2252477]
[1756562995814,0.9480808,108690.0,108680.0,0.2252477]
[1756562996235,0.95190358,108690.0,108680.0,0.2252477]
[1756562998399,1.29190358,108690.0,108680.0,0.2252477]
[1756562998606,1.31178758,108690.0,108680.0,0.2252477]
[1756563000826,1.31178758,108690.0,108680.0,0.2283577]
[1756563001039,0.61971316,108690.0,108680.0,0.2283577]
[1756563001247,1.31178758,108690.0,108680.0,0.2283577]
[1756563001468,1.31178758,108690.0,108680.0,0.2305077]
[1756563001913,1.31109758,108690.0,108680.0,0.2305077]
[1756563002496,1.30462091,108690.0,108680.0,0.2305077]
[1756563002721,1.31176269,108690.0,108680.0,0.2305077]
[1756563003770,1.31107269,108690.0,108680.0,0.2305077]
[1756563004182,1.31176269,108690.0,108680.0,0.2305077]
[1756563005065,1.31107269,108690.0,108680.0,0.2305077]
[1756563005505,1.31176269,108690.0,108680.0,0.2305077]
[1756563006217,1.31176099,108690.0,108680.0,0.2305077]
[1756563006766,1.29187699,108690.0,108680.0,0.2305077]
[1756563007024,1.31174678,108690.0,108680.0,0.2305077]
[1756563007206,1.31105678,108690.0,108680.0,0.2305077]
[1756563008493,1.28734398,108690.0,108680.0,0.2305077]
[1756563008698,1.26747419,108690.0,108680.0,0.2305077]
[1756563009139,1.28734303,108690.0,108680.0,0.2305077]
[1756563009351,1.28803303,108690.0,108680.0,0.2305077]
[1756563009773,1.28802757,108690.0,108680.0,0.2305077]
[1756563011785,1.37632389,108690.0,108680.0,0.2252477]
[1756563012001,1.31130158,108690.0,108680.0,0.2283577]
[1756563012580,1.31061158,108690.0,108680.0,0.2305077]
[1756563013014,1.29405411,108690.0,108680.0,0.2305077]
[1756563013217,1.31130551,108690.0,108680.0,0.2305077]
[1756563013652,1.29405451,108690.0,108680.0,0.2305077]
[1756563013853,1.31130551,108690.0,108680.0,0.2305077]
[1756563014169,1.31130536,108690.0,108680.0,0.2305077]
[1756563017660,1.31130536,108690.0,108680.0,0.2283577]
[1756563017874,1.31130536,108690.0,108680.0,0.0739177]
[1756563018095,1.31130536,108690.0,108680.0,0.2283577]
[1756563018488,1.74563889,108690.0,108680.0,4.77e-05]
[1756563018691,1.74606889,108690.0,108680.0,0.1544877]
[1756563019455,6.94079264,108690.0,108680.0,4.77e-05]
[1756563019914,7.038584,108690.0,108680.0,4.77e-05]
[1756563020126,7.037584,108690.0,108680.0,4.77e-05]
[1756563020362,7.02033315,108690.0,108680.0,4.77e-05]
[1756563020537,7.03760103,108690.0,108680.0,4.77e-05]
[1756563020981,6.95030471,108690.0,108680.0,4.77e-05]
[1756563021786,6.94930471,108690.0,108680.0,4.77e-05]
[1756563021996,6.95030471,108690.0,108680.0,4.77e-05]
[1756563022595,6.95130471,108690.0,108680.0,4.77e-05]
[1756563023799,6.94483613,108690.0,108680.0,4.77e-05]
[1756563024002,7.03960375,108690.0,108680.0,4.77e-05]
[1756563024859,6.95130743,108690.0,108680.0,4.77e-05]
[1756563027092,6.95043051,108690.0,108680.0,4.77e-05]
[1756563027288,6.79599051,108690.0,108680.0,4.77e-05]
[1756563027491,6.95043051,108690.0,108680.0,4.77e-05]
[1756563029740,5.91231888,108690.0,108680.0,0.0031377]
[1756563029942,6.95043051,108690.0,108680.0,0.0031377]
[1756563031339,6.79599051,108690.0,108680.0,0.0051077]
[1756563031538,6.92554912,108690.0,108680.0,0.0051077]
[1756563031743,6.92554912,108690.0,108680.0,0.0031377]
[1756563032810,7.01384544,108690.0,108680.0,0.0031377]
[1756563032983,7.03872683,108690.0,108680.0,0.0031377]
[1756563033187,7.01384544,108690.0,108680.0,0.0031377]
[1756563033391,6.92554912,108690.0,108680.0,0.0031377]
[1756563034149,6.57951191,108690.0,108680.0,0.0031377]
[1756563034587,6.57951039,108690.0,108680.0,0.0031377]
[1756563034807,5.88743192,108690.0,108680.0,0.0051077]
[1756563035023,6.57950634,108690.0,108680.0,0.0051077]
[1756563035474,6.60438773,108690.0,108680.0,0.0051077]
[1756563035683,6.60438773,108690.0,108680.0,0.0031377]
[1756563037247,6.60438773,108690.0,108680.0,0.0051077]
[1756563037448,6.57950634,108690.0,108680.0,0.0051077]
[1756563038501,6.42437634,108690.0,108680.0,0.0051077]
[1756563038704,6.57881634,108690.0,108680.0,0.0051077]
[1756563039343,5.88674192,108690.0,108680.0,0.0051077]
[1756563039519,6.57881634,108690.0,108680.0,0.0051077]
[1756563040616,6.42437634,108690.0,108680.0,0.0051077]
[1756563041246,6.42506634,108690.0,108680.0,0.0051077]
[1756563041450,6.42437634,108690.0,108680.0,0.0051077]
[1756563041600,6.44925773,108690.0,108680.0,0.0051077]
[1756563042612,6.60369773,108690.0,108680.0,0.0051077]
[1756563043191,6.57881634,108690.0,108680.0,0.0051077]
[1756563043396,6.60369773,108690.0,108680.0,0.0051077]
[1756563043591,6.44925773,108690.0,108680.0,0.0051077]
[1756563045023,6.44926948,108690.0,108680.0,0.0051077]
[1756563045233,6.44928322,108690.0,108680.0,0.0051077]
[1756563045668,6.60372322,108690.0,108680.0,0.0051077]
[1756563046234,6.60372334,108690.0,108680.0,0.0051077]
[1756563048617,6.60441334,108690.0,108680.0,0.0051077]
[1756563049216,6.64609914,108690.0,108680.0,0.0051077]
[1756563049627,6.64609914,108690.0,108680.0,0.0031377]
[1756563049832,6.64609914,108690.0,108680.0,4.77e-05]
[1756563052110,6.99213635,108690.0,108680.0,4.77e-05]
[1756563052511,6.64609914,108690.0,108680.0,4.77e-05]
[1756563054221,6.60441334,108690.0,108680.0,4.77e-05]
[1756563055818,6.60441729,108690.0,108680.0,4.77e-05]
[1756563056022,6.6044277,108690.0,108680.0,4.77e-05]
[1756563056675,6.59794732,108690.0,108680.0,4.77e-05]
[1756563056896,6.60442786,108690.0,108680.0,4.77e-05]
[1756563057040,6.60442786,108690.0,108680.0,0.0030777]
[1756563059073,6.5726403,108690.0,108680.0,0.0030777]
[1756563059446,6.57264046,108690.0,108680.0,0.0030777]
[1756563061595,6.57264046,108690.0,108680.0,4.77e-05]
[1756563061801,6.57264046,108690.0,108680.0,0.0030777]
[1756563063420,6.66093678,108690.0,108680.0,0.0030777]
[1756563064234,6.66093678,108690.0,108680.0,4.77e-05]
[1756563064416,6.66093678,108690.0,108680.0,0.0030777]
[1756563065386,6.66093809,108690.0,108680.0,0.0030777]
[1756563065635,6.66093809,108690.0,108680.0,0.0051077]
[1756563066315,5.72612735,108690.0,108680.0,0.0051077]
[1756563066522,6.57264177,108690.0,108680.0,0.0051077]
[1756563069045,6.59750959,108690.0,108680.0,0.0051077]
[1756563071239,6.59102865,108690.0,108680.0,0.0051077]
[1756563071443,6.59750974,108690.0,108680.0,0.0051077]
[1756563072670,0.18404343,108670.0,108660.0,0.49434]
[1756563072884,0.55384425,108670.0,108660.0,0.49684759]
[1756563073320,0.58151625,108670.0,108660.0,0.49684759]
[1756563074145,0.58151625,108670.0,108660.0,0.49784759]
[1756563074563,0.23547904,108670.0,108660.0,0.49784759]
[1756563074782,0.58151625,108670.0,108660.0,0.50087759]
[1756563075411,0.58151625,108670.0,108660.0,0.50187759]
[1756563075935,0.58151634,108670.0,108660.0,0.50187759]
[1756563076563,0.58151642,108670.0,108660.0,0.50187759]
[1756563076772,0.58151642,108670.0,108660.0,0.43107759]
[1756563077733,0.23547921,108670.0,108660.0,0.43107759]
[1756563077962,0.58151642,108670.0,108660.0,0.43107759]
[1756563081483,0.23547921,108670.0,108660.0,0.43107759]
[1756563081911,0.58151642,108670.0,108660.0,0.43107759]
[1756563085146,0.23547921,108670.0,108660.0,0.43107759]
[1756563085363,0.58151642,108670.0,108660.0,0.43107759]
[1756563086593,0.58151756,108670.0,108660.0,0.43107759]
[1756563087157,0.57503618,108670.0,108660.0,0.43107759]
[1756563087401,0.58151751,108670.0,108660.0,0.43107759]
[1756563087596,0.58151743,108670.0,108660.0,0.43107759]
[1756563089824,0.58151743,108670.0,108660.0,0.43078633]
[1756563090177,0.58151743,108670.0,108660.0,0.42978633]
[1756563090372,0.58151743,108670.0,108660.0,0.42878633]
[1756563090598,0.23548022,108670.0,108660.0,0.42878633]
[1756563090770,0.58151743,108670.0,108660.0,0.42878633]
[1756563090988,0.23548022,108670.0,108660.0,0.42878633]
[1756563091190,0.23548022,108670.0,108660.0,0.49958633]
[1756563092030,0.58151743,108670.0,108660.0,0.49958633]
[1756563093677,0.92151743,108670.0,108660.0,0.49958633]
[1756563095694,0.92365743,108670.0,108660.0,0.34514633]
[1756563095902,0.92365743,108670.0,108660.0,0.49655633]
[1756563096796,0.92365743,108670.0,108660.0,0.49967633]
[1756563097203,0.89989264,108670.0,108660.0,0.49967633]
[1756563097510,0.92365653,108670.0,108660.0,0.49967633]
[1756563097938,0.57761932,108670.0,108660.0,0.49967633]
[1756563098150,0.92365653,108670.0,108660.0,0.49967633]
[1756563098352,0.92365653,108670.0,108660.0,0.49655633]
[1756563098790,0.57761932,108670.0,108660.0,0.49967633]
[1756563098936,0.92151653,108670.0,108660.0,0.49967633]
[1756563099147,0.57547932,108670.0,108660.0,0.49967633]
[1756563099350,0.92151653,108670.0,108660.0,0.49967633]
[1756563100754,0.92151653,108670.0,108660.0,0.42887633]
[1756563103029,0.92365653,108670.0,108660.0,0.42887633]
[1756563103241,0.57547932,108670.0,108660.0,0.42887633]
[1756563103444,0.92151653,108670.0,108660.0,0.42887633]
[1756563105806,0.57547932,108670.0,108660.0,1.05195392]
[1756563106136,0.57547932,108670.0,108660.0,0.70591671]
[1756563106567,0.57547932,108670.0,108660.0,1.05195392]
[1756563106782,0.56899826,108670.0,108660.0,1.05195392]
[1756563107275,0.38495483,108670.0,108660.0,1.39799113]
[1756563108086,0.38495061,108670.0,108660.0,1.39799113]
[1756563108314,0.027672,108670.0,108660.0,1.39799113]
[1756563108729,0.027672,108670.0,108660.0,1.64799113]
[1756563109158,0.027672,108670.0,108660.0,1.64899113]
[1756563110001,0.027672,108670.0,108660.0,1.64999113]
[1756563110403,0.027672,108670.0,108660.0,0.95791671]
[1756563110653,0.027672,108670.0,108660.0,1.64999113]
[1756563112261,0.027672,108670.0,108660.0,0.80347671]
[1756563112473,0.027672,108670.0,108660.0,1.30391392]
[1756563114031,0.027672,108670.0,108660.0,0.95787671]
[1756563116228,0.32640533,108680.0,108660.0,0.95787671]
[1756563116428,0.32640533,108680.0,108670.0,0.31818001]
[1756563116429,0.52769956,108680.0,108670.0,0.31818001]
[1756563116632,0.52972956,108680.0,108670.0,0.32347001]
[1756563116962,0.55739856,108680.0,108670.0,0.32347001]
[1756563117600,0.90343577,108680.0,108670.0,0.32347001]
[1756563118416,0.04492206,108680.0,108670.0,0.50751344]
[1756563118701,0.027669,108680.0,108670.0,0.50751344]
[1756563118915,0.027669,108680.0,108670.0,0.75751344]
[1756563120550,0.53004827,108690.0,108670.0,0.75751344]
[1756563120758,0.57496341,108690.0,108680.0,0.00322]
[1756563120946,0.57699341,108690.0,108680.0,0.09827001]
[1756563121582,0.58014341,108690.0,108680.0,0.24738001]
[1756563121796,0.59887373,108690.0,108680.0,0.24738001]
[1756563122825,0.59572373,108690.0,108680.0,0.24945001]
[1756563123058,0.59572373,108690.0,108680.0,0.24949001]
[1756563123845,0.59887373,108690.0,108680.0,0.51622875]
[1756563124648,0.59572373,108690.0,108680.0,0.51829875]
[1756563127934,0.59571699,108690.0,108680.0,0.51829875]
[1756563128560,0.59886737,108690.0,108680.0,0.51634875]
[1756563129206,0.59886737,108690.0,108680.0,0.51841875]
[1756563130151,0.59886737,108690.0,108680.0,0.36385875]
[1756563130354,0.59886737,108690.0,108680.0,0.51841875]
[1756563130559,0.94490458,108690.0,108680.0,0.36178875]
[1756563130782,0.94490458,108690.0,108680.0,0.42336874]
[1756563131637,0.59887218,108690.0,108680.0,0.42336874]
[1756563131839,0.94490939,108690.0,108680.0,0.42336874]
[1756563133786,0.94490939,108690.0,108680.0,0.42340874]
[1756563135442,0.75163427,108690.0,108680.0,0.42340874]
[1756563135934,0.93564533,108690.0,108680.0,0.42340874]
[1756563136905,0.93564533,108690.0,108680.0,0.42336874]
[1756563137331,0.94211985,108690.0,108680.0,0.26880874]
[1756563137576,0.94211985,108690.0,108680.0,0.42336874]
[1756563138675,0.91839874,108690.0,108680.0,0.42336874]
[1756563138862,0.9421444,108690.0,108680.0,0.42336874]
[1756563140708,0.93566831,108690.0,108680.0,0.42336874]
[1756563140916,0.94214481,108690.0,108680.0,0.42336874]
[1756563142616,0.25007039,108690.0,108680.0,0.42336874]
[1756563142824,0.94214481,108690.0,108680.0,0.42336874]
[1756563143030,0.5961076,108690.0,108680.0,0.42336874]
[1756563143444,0.94214481,108690.0,108680.0,0.42336874]
[1756563148488,0.93899481,108690.0,108680.0,0.42541874]
[1756563149295,0.24692226,108690.0,108680.0,0.42541874]
[1756563149498,0.59295947,108690.0,108680.0,0.42541874]
[1756563149706,0.59596947,108690.0,108680.0,0.42336874]
[1756563149934,0.59295947,108690.0,108680.0,0.42541874]
[1756563150127,0.59295951,108690.0,108680.0,0.42541874]
[1756563150520,0.93899672,108690.0,108680.0,0.42541874]
[1756563150696,0.59295951,108690.0,108680.0,0.42541874]
[1756563151374,0.59092951,108690.0,108680.0,0.42848874]
[1756563152280,0.59306951,108690.0,108680.0,0.42848874]
[1756563153648,0.93910672,108690.0,108680.0,0.42541874]
[1756563153858,0.93910672,108690.0,108680.0,0.42573874]
[1756563153988,0.94211672,108690.0,108680.0,0.42573874]
[1756563154805,0.94211672,108690.0,108680.0,0.42368874]
[1756563157407,1.28211672,108690.0,108680.0,0.42364874]
[1756563159841,1.28212264,108690.0,108680.0,0.42364874]
[1756563160144,1.28212264,108690.0,108680.0,0.26880874]
[1756563160367,1.28212413,108690.0,108680.0,0.42360874]
[1756563166649,1.28212413,108690.0,108680.0,0.42356874]
[1756563166853,1.28212413,108690.0,108680.0,0.42352874]
[1756563167055,1.30203016,108690.0,108680.0,0.42352874]
[1756563167956,1.39032648,108690.0,108680.0,0.42352874]
[1756563168185,1.39032648,108690.0,108680.0,0.26880874]
[1756563168186,1.64806737,108690.0,108680.0,0.26880874]
[1756563168414,1.64806737,108690.0,108680.0,0.42352874]
[1756563168641,1.64806678,108690.0,108680.0,0.42352874]
[1756563168882,1.07874525,108690.0,108680.0,0.42352874]
[1756563169070,1.45459446,108690.0,108680.0,0.42352874]
[1756563169498,1.63860552,108690.0,108680.0,0.26880874]
[1756563169723,1.79336552,108690.0,108680.0,0.42352874]
[1756563169948,1.79336552,108690.0,108680.0,0.26880874]
[1756563169949,1.80995705,108690.0,108680.0,0.26880874]
[1756563170174,1.92537185,108690.0,108680.0,0.42356874]
[1756563170414,1.92537185,108690.0,108680.0,0.26880874]
[1756563170415,6.90293691,108690.0,108680.0,0.26880874]
[1756563170631,6.90293651,108690.0,108680.0,0.42356874]
[1756563171068,6.90493651,108690.0,108680.0,0.42356874]
[1756563171287,6.90792968,108690.0,108680.0,0.42356874]
[1756563171517,6.90792968,108690.0,108680.0,0.15476]
[1756563171801,6.91933251,108690.0,108680.0,0.15476]
[1756563172018,6.92033251,108690.0,108680.0,0.15476]
[1756563172221,6.91833251,108690.0,108680.0,0.15476]
[1756563172853,0.18402649,108680.0,108670.0,0.0708]
[1756563173054,0.52404343,108670.0,108660.0,0.26928633]
[1756563173260,1.24198586,108670.0,108660.0,0.15515759]
[1756563173434,1.26966086,108670.0,108660.0,0.15515759]
[1756563174002,1.26964831,108670.0,108660.0,0.15515759]
[1756563174441,1.26964831,108670.0,108660.0,0.16037759]
[1756563175236,1.26316972,108670.0,108660.0,0.16137759]
[1756563175454,0.5710953,108670.0,108660.0,0.16237759]
[1756563175658,1.26316972,108670.0,108660.0,0.16237759]
[1756563177398,1.26316972,108670.0,108660.0,0.16137759]
[1756563177618,1.26316972,108670.0,108660.0,0.16037759]
[1756563180699,1.24591285,108670.0,108660.0,0.16037759]
[1756563180906,1.26315415,108670.0,108660.0,0.16037759]
[1756563183243,1.26315214,108670.0,108660.0,0.16037759]
[1756563185974,0.57107772,108670.0,108660.0,0.16037759]
[1756563186157,1.26315214,108670.0,108660.0,0.15722759]
[1756563186558,1.26315214,108670.0,108660.0,0.16037759]
[1756563187067,1.26315214,108670.0,108660.0,0.15515759]
[1756563187254,1.26315214,108670.0,108660.0,0.16037759]
[1756563189432,1.26315443,108670.0,108660.0,0.16037759]
[1756563190436,1.26315563,108670.0,108660.0,0.16037759]
[1756563191247,1.26315599,108670.0,108660.0,0.15515759]
[1756563191448,1.26962277,108670.0,108660.0,0.15515759]
[1756563191652,1.27267277,108670.0,108660.0,0.00047759]
[1756563191855,1.27267277,108670.0,108660.0,0.15515759]
[1756563193812,1.27367277,108670.0,108660.0,0.15515759]
[1756563194470,1.27267277,108670.0,108660.0,0.15515759]
[1756563194753,1.27062277,108670.0,108660.0,0.15515759]
[1756563195442,1.29050023,108670.0,108660.0,0.15515759]
[1756563196086,1.29150023,108670.0,108660.0,0.15515759]
[1756563196521,1.29150023,108670.0,108660.0,0.16037759]
[1756563200924,1.28503345,108670.0,108660.0,0.16037759]
[1756563201130,1.26779031,108670.0,108660.0,0.16037759]
[1756563201334,0.59946834,108670.0,108660.0,0.16037759]
[1756563201547,1.29154276,108670.0,108660.0,0.16037759]
[1756563208404,1.29154351,108670.0,108660.0,0.16037759]
[1756563209038,0.59734909,108670.0,108660.0,0.16037759]
[1756563209243,0.9433863,108670.0,108660.0,0.16267834]
[1756563209463,1.28942351,108670.0,108660.0,0.16267834]
[1756563210118,1.28942351,108670.0,108660.0,0.16037759]
[1756563210119,0.57359589,108670.0,108660.0,0.16037759]
[1756563210324,0.59735096,108670.0,108660.0,0.16267834]
[1756563210524,0.94338817,108670.0,108660.0,0.16267834]
[1756563210939,0.94238817,108670.0,108660.0,0.16267834]
[1756563211349,0.92351071,108670.0,108660.0,0.16267834]
[1756563211755,0.90523429,108670.0,108660.0,0.16267834]
[1756563211972,0.92251014,108670.0,108660.0,0.16267834]
[1756563212373,0.92351014,108670.0,108660.0,0.16267834]
[1756563212991,0.92251014,108670.0,108660.0,0.43148708]
[1756563213125,0.57647293,108670.0,108660.0,0.42918633]
[1756563213339,0.92251014,108670.0,108660.0,0.42918633]
[1756563213969,0.23647293,108670.0,108660.0,0.6132467]
[1756563214175,0.54835649,108670.0,108660.0,0.70622671]
[1756563215900,0.01827585,108670.0,108660.0,0.70622671]
[1756563216112,0.36431306,108670.0,108660.0,0.70622671]
[1756563216364,0.01827585,108670.0,108660.0,0.73389571]
[1756563216579,0.36431306,108670.0,108660.0,0.73389571]
[1756563216782,0.34703721,108670.0,108660.0,0.98389571]
[1756563217340,0.001,108670.0,108660.0,0.98389571]
[1756563217587,0.5577347,108680.0,108660.0,0.98589571]
[1756563217765,0.91499027,108680.0,108670.0,0.00230054]
[1756563217967,0.91499027,108680.0,108670.0,0.07811054]
[1756563218382,0.91499027,108680.0,108670.0,0.07581]
[1756563218751,0.91498591,108680.0,108670.0,0.07581]
[1756563219379,0.91498591,108680.0,108670.0,0.07811054]
[1756563219584,1.26302312,108680.0,108670.0,0.07581]
[1756563219826,1.26302312,108680.0,108670.0,0.23129]
[1756563220976,1.26302312,108680.0,108670.0,0.23229]
[1756563221729,1.26302312,108680.0,108670.0,0.50109874]
[1756563222360,1.24577191,108680.0,108670.0,0.50109874]
[1756563222558,1.26301478,108680.0,108670.0,0.50109874]
[1756563222936,1.02463391,108680.0,108670.0,0.50109874]
[1756563223506,1.2086604,108680.0,108670.0,0.50109874]
[1756563230723,0.54326936,108680.0,108670.0,0.50109874]
[1756563230921,1.23534378,108680.0,108670.0,0.50109874]
[1756563231990,1.23334378,108680.0,108670.0,0.50109874]
[1756563232138,1.23334378,108680.0,108670.0,0.68514217]
[1756563232527,1.23334378,108680.0,108670.0,0.50109874]
[1756563232946,1.23334144,108680.0,108670.0,0.50109874]
[1756563235518,1.23334144,108680.0,108670.0,0.68514217]
[1756563236286,1.23334144,108680.0,108670.0,0.50109874]
[1756563238328,1.23334144,108680.0,108670.0,0.68514217]
[1756563239139,1.23334144,108680.0,108670.0,0.50109874]
[1756563242300,1.21610091,108680.0,108670.0,0.50109874]
[1756563242473,1.2333654,108680.0,108670.0,0.68514217]
[1756563242945,1.23337069,108680.0,108670.0,0.68514217]
[1756563243154,1.23537069,108680.0,108670.0,0.50109874]
[1756563249268,1.21810091,108680.0,108670.0,0.50109874]
[1756563249640,1.23538038,108680.0,108670.0,0.50109874]
[1756563251282,0.54330596,108680.0,108670.0,0.50109874]
[1756563251490,1.23538038,108680.0,108670.0,0.50109874]
[1756563252847,1.2353806,108680.0,108670.0,0.50109874]
[1756563258393,1.24186104,108680.0,108670.0,0.50109874]
[1756563260087,1.24186104,108680.0,108670.0,0.68514217]
[1756563260339,0.01727969,108680.0,108670.0,0.77812218]
[1756563260576,0.3633169,108680.0,108670.0,0.77812218]
[1756563260787,0.01727969,108680.0,108670.0,1.05579018]
[1756563260999,0.3633169,108680.0,108670.0,1.05579018]
[1756563263457,0.34603721,108680.0,108670.0,1.05579018]
[1756563263669,0.36331096,108680.0,108670.0,1.05579018]
[1756563264293,0.54733745,108680.0,108670.0,1.05575018]
[1756563265339,0.89337466,108680.0,108670.0,1.05575018]
[1756563269843,0.89336935,108680.0,108670.0,1.05575018]
[1756563270189,0.20129493,108680.0,108670.0,1.05575018]
[1756563270386,0.89336935,108680.0,108670.0,1.05575018]
[1756563270712,0.70934286,108680.0,108670.0,1.05575018]
[1756563271140,0.36330565,108680.0,108670.0,1.05575018]
[1756563274029,0.36330439,108680.0,108670.0,1.05575018]
[1756563274247,0.54733088,108680.0,108670.0,1.05575018]
[1756563274425,0.89336809,108680.0,108670.0,1.05575018]
[1756563275680,0.20129367,108680.0,108670.0,1.05575018]
[1756563275894,0.89336809,108680.0,108670.0,1.05575018]
[1756563277710,0.89336809,108680.0,108670.0,0.84107875]
[1756563277711,0.89550809,108680.0,108670.0,0.84107875]
[1756563277950,0.89550809,108680.0,108670.0,0.59421875]
[1756563279797,0.89550809,108680.0,108670.0,1.02826218]
[1756563280554,0.89550809,108680.0,108670.0,0.68977875]
[1756563280751,0.89550809,108680.0,108670.0,0.59421875]
[1756563281186,0.20343367,108680.0,108670.0,0.59421875]
[1756563281396,0.89550809,108680.0,108670.0,0.59421875]
[1756563281923,0.89550809,108680.0,108670.0,0.77826218]
[1756563282315,0.89131309,108680.0,108670.0,0.59421875]
[1756563282742,0.89131309,108680.0,108670.0,0.77826218]
[1756563283189,0.89131309,108680.0,108670.0,0.59421875]
[1756563283389,0.89131309,108680.0,108670.0,0.58902875]
[1756563284322,0.19923867,108680.0,108670.0,0.77307218]
[1756563284522,0.89131309,108680.0,108670.0,0.77307218]
[1756563284734,0.87824091,108680.0,108670.0,0.77307218]
[1756563284933,1.02176691,108680.0,108670.0,0.77307218]
[1756563285142,1.02176691,108680.0,108670.0,0.77837218]
[1756563285749,1.02176691,108680.0,108670.0,0.58902875]
[1756563287316,1.02176691,108680.0,108670.0,0.43458875]
[1756563287519,1.02176691,108680.0,108670.0,0.58902875]
[1756563288125,1.02176691,108680.0,108670.0,0.59118875]
[1756563288663,1.02176691,108680.0,108670.0,0.59432875]
[1756563289605,0.32969249,108680.0,108670.0,0.59432875]
[1756563289920,1.02176691,108680.0,108670.0,0.59432875]
[1756563291704,1.02176691,108680.0,108670.0,0.58902875]
[1756563292647,0.32969249,108680.0,108670.0,0.59109875]
[1756563292853,1.02176691,108680.0,108670.0,0.59422875]
[1756563294255,1.0188509,108680.0,108670.0,0.43458875]
[1756563294433,1.03612996,108680.0,108670.0,0.49604874]
[1756563295362,1.03613027,108680.0,108670.0,0.49604874]
[1756563295712,1.03612891,108680.0,108670.0,0.49604874]
[1756563295909,0.34405449,108680.0,108670.0,0.49604874]
[1756563296127,1.03612891,108680.0,108670.0,0.49604874]
[1756563297504,1.03612891,108680.0,108670.0,0.51449874]
[1756563297715,1.03612891,108680.0,108670.0,0.49604874]
[1756563298288,1.03294891,108680.0,108670.0,0.49604874]
[1756563300330,1.37294891,108680.0,108670.0,0.27080874]
[1756563300531,1.72864447,108680.0,108670.0,0.42524874]
[1756563301221,1.72864447,108680.0,108670.0,0.27080874]
[1756563301222,1.92925824,108680.0,108670.0,0.27080874]
[1756563301428,1.95693224,108680.0,108670.0,0.42524874]
[1756563301852,1.95693224,108680.0,108670.0,0.42424874]
[1756563302053,1.93066115,108680.0,108670.0,0.15544]
[1756563302256,1.93166115,108680.0,108670.0,0.15544]
[1756563302666,1.93066115,108680.0,108670.0,0.15544]
[1756563303468,1.93066115,108680.0,108670.0,0.001]
[1756563303670,0.52404343,108670.0,108660.0,0.42372633]
[1756563303851,1.23339586,108670.0,108660.0,0.42372633]
[1756563304198,1.23552586,108670.0,108660.0,0.42372633]
[1756563304409,1.26320086,108670.0,108660.0,0.42372633]
[1756563304614,1.24592285,108670.0,108660.0,0.42372633]